[Event "Live Chess"]
[Site "Chess.com"]
[Date "2024.06.02"]
[Round "-"]
[White "StoreySniper"]
[Black "MagnersCarlsberg2870"]
[Result "1-0"]
[WhiteElo "2500"]
[BlackElo "1739"]
[TimeControl "300"]
[EndTime "6:03:54 PDT"]
[Termination "StoreySniper won by resignation"]

1. e4 {[%clk 0:04:58]} 1... g6 {[%clk 0:04:56.8]} 2. h4 {[%clk 0:04:55.5]} 2...
Bg7 {[%clk 0:04:54.6]} 3. h5 {[%clk 0:04:54.5]} 3... c5 {[%clk 0:04:53.6]} 4.
Bc4 {[%clk 0:04:50.6]} 4... e6 {[%clk 0:04:49.1]} 5. Nc3 {[%clk 0:04:46.4]} 5...
Ne7 {[%clk 0:04:47.7]} 6. h6 {[%clk 0:04:40.1]} 6... Bxc3 {[%clk 0:04:40.6]} 7.
dxc3 {[%clk 0:04:36.7]} 7... d5 {[%clk 0:04:39.7]} 8. Bb5+ {[%clk 0:04:32.7]}
8... Bd7 {[%clk 0:04:37.3]} 9. Bxd7+ {[%clk 0:04:27.4]} 9... Nxd7 {[%clk
0:04:36.3]} 10. Qe2 {[%clk 0:04:23.3]} 10... dxe4 {[%clk 0:04:20.5]} 11. Qxe4
{[%clk 0:04:16.3]} 11... Nc6 {[%clk 0:04:10]} 12. Nf3 {[%clk 0:04:13.2]} 12...
Qb6 {[%clk 0:04:00.2]} 13. b3 {[%clk 0:04:02.7]} 13... O-O-O {[%clk 0:03:58.6]}
14. Bd2 {[%clk 0:03:47]} 14... f5 {[%clk 0:03:57.3]} 15. Qe2 {[%clk 0:03:41.9]}
15... e5 {[%clk 0:03:56.2]} 16. O-O-O {[%clk 0:03:38.9]} 16... e4 {[%clk
0:03:54.9]} 17. Ng5 {[%clk 0:03:37.7]} 17... Nde5 {[%clk 0:03:39.5]} 18. Be3
{[%clk 0:03:16.1]} 18... Qa5 {[%clk 0:03:37.1]} 19. Kb2 {[%clk 0:03:12.7]} 19...
Ng4 {[%clk 0:03:03.9]} 20. Rxd8+ {[%clk 0:03:04.4]} 20... Rxd8 {[%clk
0:03:02.3]} 21. Nxh7 {[%clk 0:02:56.6]} 21... Nxe3 {[%clk 0:02:59.8]} 22. fxe3
{[%clk 0:02:51.9]} 22... Nb4 {[%clk 0:02:47.1]} 23. cxb4 {[%clk 0:02:46.2]}
23... cxb4 {[%clk 0:02:46.2]} 24. Ng5 {[%clk 0:02:26.5]} 24... Qe5+ {[%clk
0:02:43.2]} 25. Kb1 {[%clk 0:02:24.1]} 25... Qc3 {[%clk 0:02:31.4]} 26. Qc4+
{[%clk 0:02:20.3]} 1-0

[Event "Live Chess"]
[Site "Chess.com"]
[Date "2024.06.02"]
[Round "-"]
[White "dl_chess"]
[Black "Grace6363"]
[Result "1-0"]
[WhiteElo "1192"]
[BlackElo "1123"]
[TimeControl "300"]
[EndTime "6:03:55 PDT"]
[Termination "dl_chess won by resignation"]

1. e4 {[%clk 0:04:54.7]} 1... c5 {[%clk 0:04:59.3]} 2. Nf3 {[%clk 0:04:52.1]}
2... Nc6 {[%clk 0:04:58.9]} 3. d4 {[%clk 0:04:50.8]} 3... cxd4 {[%clk
0:04:58.4]} 4. Nxd4 {[%clk 0:04:49.6]} 4... g6 {[%clk 0:04:58.2]} 5. Nc3 {[%clk
0:04:47.6]} 5... Bg7 {[%clk 0:04:57.6]} 6. Be3 {[%clk 0:04:43.5]} 6... Nf6
{[%clk 0:04:57.1]} 7. Bb5 {[%clk 0:04:40.6]} 7... d6 {[%clk 0:04:55.9]} 8. Bxc6+
{[%clk 0:04:39.4]} 8... bxc6 {[%clk 0:04:55.1]} 9. Nxc6 {[%clk 0:04:37.3]} 9...
Qb6 {[%clk 0:04:53.6]} 10. Bxb6 {[%clk 0:04:33.1]} 10... axb6 {[%clk 0:04:50.2]}
11. O-O {[%clk 0:04:24.9]} 1-0

[Event "Live Chess"]
[Site "Chess.com"]
[Date "2024.06.02"]
[Round "-"]
[White "PavelChernomordik"]
[Black "TigerTank70"]
[Result "1-0"]
[WhiteElo "2507"]
[BlackElo "2207"]
[TimeControl "300"]
[EndTime "6:04:10 PDT"]
[Termination "PavelChernomordik won by resignation"]

1. e4 {[%clk 0:04:57.2]} 1... e5 {[%clk 0:04:58.7]} 2. Nf3 {[%clk 0:04:56]} 2...
Nc6 {[%clk 0:04:58]} 3. Bb5 {[%clk 0:04:54.6]} 3... a6 {[%clk 0:04:56.5]} 4. Ba4
{[%clk 0:04:53.1]} 4... Nf6 {[%clk 0:04:54.4]} 5. d3 {[%clk 0:04:51.6]} 5... b5
{[%clk 0:04:53.7]} 6. Bb3 {[%clk 0:04:50.3]} 6... Be7 {[%clk 0:04:53.6]} 7. a4
{[%clk 0:04:48.2]} 7... Rb8 {[%clk 0:04:51.4]} 8. axb5 {[%clk 0:04:46.7]} 8...
axb5 {[%clk 0:04:51.3]} 9. Nc3 {[%clk 0:04:40.8]} 9... O-O {[%clk 0:04:50.7]}
10. Bg5 {[%clk 0:04:37.6]} 10... h6 {[%clk 0:04:48.7]} 11. Bh4 {[%clk 0:04:36]}
11... b4 {[%clk 0:04:44.6]} 12. Bxf6 {[%clk 0:04:32.9]} 12... bxc3 {[%clk
0:04:33]} 13. Bxe7 {[%clk 0:04:31.6]} 13... Nxe7 {[%clk 0:04:28.5]} 14. bxc3
{[%clk 0:04:30.3]} 14... Ng6 {[%clk 0:04:27.3]} 15. O-O {[%clk 0:04:26]} 15...
d6 {[%clk 0:04:26.4]} 16. h3 {[%clk 0:04:21.7]} 16... Nf4 {[%clk 0:04:24.5]} 17.
Kh2 {[%clk 0:04:19.9]} 17... Qf6 {[%clk 0:04:20.5]} 18. Ng1 {[%clk 0:04:14.8]}
18... Kh8 {[%clk 0:03:59]} 19. g3 {[%clk 0:04:12.3]} 19... Ng6 {[%clk
0:03:53.9]} 20. Ra7 {[%clk 0:04:02.7]} 20... Rb7 {[%clk 0:03:46.4]} 21. Ra8
{[%clk 0:03:54.8]} 21... Qe7 {[%clk 0:03:19.8]} 22. Qh5 {[%clk 0:03:47.4]} 22...
c6 {[%clk 0:03:11.2]} 23. f4 {[%clk 0:03:36.2]} 23... exf4 {[%clk 0:03:07]} 24.
gxf4 {[%clk 0:03:31.1]} 24... Rb5 {[%clk 0:03:02]} 25. Qe2 {[%clk 0:03:09.7]}
25... Qb7 {[%clk 0:02:52.8]} 26. Raa1 {[%clk 0:03:01.2]} 26... d5 {[%clk
0:02:50.1]} 27. f5 {[%clk 0:02:53]} 27... Qc7+ {[%clk 0:02:38.3]} 28. Kh1 {[%clk
0:02:47.8]} 28... Ne5 {[%clk 0:02:19.3]} 29. d4 {[%clk 0:02:39.9]} 29... Nd7
{[%clk 0:01:57.6]} 30. e5 {[%clk 0:02:29.4]} 30... Nb6 {[%clk 0:01:55.3]} 31. f6
{[%clk 0:02:20.7]} 31... g6 {[%clk 0:01:48.5]} 32. Qe3 {[%clk 0:02:15.4]} 32...
Kh7 {[%clk 0:01:46.6]} 33. Rf4 {[%clk 0:02:02.2]} 33... Qd7 {[%clk 0:01:22.7]}
34. Rh4 {[%clk 0:01:56.8]} 34... h5 {[%clk 0:01:21.5]} 35. Rxh5+ {[%clk
0:01:48.1]} 35... gxh5 {[%clk 0:01:20.1]} 36. Qg5 {[%clk 0:01:47]} 1-0

[Event "Live Chess"]
[Site "Chess.com"]
[Date "2024.06.02"]
[Round "-"]
[White "davigator"]
[Black "gobbles19"]
[Result "1-0"]
[WhiteElo "2361"]
[BlackElo "2242"]
[TimeControl "300"]
[EndTime "6:04:21 PDT"]
[Termination "davigator won by resignation"]

1. e4 {[%clk 0:04:57.4]} 1... Nf6 {[%clk 0:04:57.8]} 2. e5 {[%clk 0:04:55.6]}
2... Nd5 {[%clk 0:04:57.1]} 3. Nf3 {[%clk 0:04:54.7]} 3... d6 {[%clk 0:04:56]}
4. d4 {[%clk 0:04:54.1]} 4... g6 {[%clk 0:04:54.8]} 5. Bc4 {[%clk 0:04:53.2]}
5... Nb6 {[%clk 0:04:53.1]} 6. Bb3 {[%clk 0:04:50.8]} 6... Bg7 {[%clk
0:04:52.1]} 7. h3 {[%clk 0:04:50]} 7... O-O {[%clk 0:04:50.4]} 8. Qe2 {[%clk
0:04:48.8]} 8... a5 {[%clk 0:04:47.9]} 9. a3 {[%clk 0:04:47.1]} 9... a4 {[%clk
0:04:45.5]} 10. Ba2 {[%clk 0:04:42]} 10... Nc6 {[%clk 0:04:34.2]} 11. O-O {[%clk
0:04:39.2]} 11... dxe5 {[%clk 0:04:32.7]} 12. dxe5 {[%clk 0:04:37.7]} 12... Nd4
{[%clk 0:04:30.1]} 13. Nxd4 {[%clk 0:04:36.2]} 13... Qxd4 {[%clk 0:04:30]} 14.
Re1 {[%clk 0:04:34.5]} 14... Bf5 {[%clk 0:04:21.1]} 15. Nc3 {[%clk 0:04:32.3]}
15... c6 {[%clk 0:03:59.4]} 16. Bg5 {[%clk 0:04:29.9]} 16... Qd7 {[%clk
0:03:13.8]} 17. Rad1 {[%clk 0:04:26.7]} 17... Qc7 {[%clk 0:03:12.5]} 18. g4
{[%clk 0:04:20.1]} 18... Be6 {[%clk 0:03:08.5]} 19. Bxe6 {[%clk 0:04:18.6]}
19... fxe6 {[%clk 0:03:08.4]} 20. Qe4 {[%clk 0:04:01.7]} 20... Nd5 {[%clk
0:02:54.1]} 21. Nxa4 {[%clk 0:03:58.8]} 21... h6 {[%clk 0:02:25.8]} 22. Bc1
{[%clk 0:03:51.6]} 22... Rxa4 {[%clk 0:02:09.7]} 23. Qxa4 {[%clk 0:03:50.2]}
23... Bxe5 {[%clk 0:02:08.7]} 24. Qe4 {[%clk 0:03:44.4]} 24... Bh2+ {[%clk
0:02:07.2]} 25. Kh1 {[%clk 0:03:42.8]} 1-0

[Event "Live Chess"]
[Site "Chess.com"]
[Date "2024.06.02"]
[Round "-"]
[White "14141409"]
[Black "upoe610"]
[Result "1/2-1/2"]
[WhiteElo "2555"]
[BlackElo "2137"]
[TimeControl "300"]
[EndTime "6:04:23 PDT"]
[Termination "Game drawn by repetition"]

1. e4 {[%clk 0:04:58]} 1... e5 {[%clk 0:04:59.3]} 2. Nf3 {[%clk 0:04:55.7]} 2...
Nc6 {[%clk 0:04:58.7]} 3. Nc3 {[%clk 0:04:50.4]} 3... Nf6 {[%clk 0:04:57.1]} 4.
d4 {[%clk 0:04:48.7]} 4... exd4 {[%clk 0:04:55.8]} 5. Nxd4 {[%clk 0:04:48.4]}
5... Bb4 {[%clk 0:04:54.3]} 6. Nxc6 {[%clk 0:04:46.8]} 6... bxc6 {[%clk
0:04:54.2]} 7. Bd3 {[%clk 0:04:45.3]} 7... d5 {[%clk 0:04:49.1]} 8. O-O {[%clk
0:04:43.6]} 8... O-O {[%clk 0:04:48.4]} 9. exd5 {[%clk 0:04:41.7]} 9... Bg4
{[%clk 0:04:46.9]} 10. f3 {[%clk 0:04:39.4]} 10... Bh5 {[%clk 0:04:46.2]} 11.
dxc6 {[%clk 0:04:37.4]} 11... Qd4+ {[%clk 0:04:44.6]} 12. Kh1 {[%clk 0:04:37]}
12... Bxc3 {[%clk 0:04:44.1]} 13. bxc3 {[%clk 0:04:36.5]} 13... Qxc3 {[%clk
0:04:44]} 14. Bd2 {[%clk 0:04:35.9]} 14... Qxc6 {[%clk 0:04:42.8]} 15. Bg5
{[%clk 0:04:29.6]} 15... Bg6 {[%clk 0:04:41.7]} 16. Qe2 {[%clk 0:04:21.3]} 16...
Rfe8 {[%clk 0:04:39]} 17. Qf2 {[%clk 0:04:20]} 17... Bxd3 {[%clk 0:04:37.3]} 18.
cxd3 {[%clk 0:04:19.4]} 18... Rad8 {[%clk 0:04:34.9]} 19. Rfe1 {[%clk
0:04:16.8]} 19... Rxe1+ {[%clk 0:04:32.9]} 20. Rxe1 {[%clk 0:04:14.4]} 20... h6
{[%clk 0:04:32.2]} 21. Bxf6 {[%clk 0:04:11.7]} 21... Qxf6 {[%clk 0:04:32.1]} 22.
Qxa7 {[%clk 0:04:09.5]} 22... Rxd3 {[%clk 0:04:30.6]} 23. Qxc7 {[%clk
0:04:05.4]} 23... Kh7 {[%clk 0:04:25.5]} 24. Qc2 {[%clk 0:04:02.6]} 24... Qg6
{[%clk 0:04:24.8]} 25. Rd1 {[%clk 0:03:59.2]} 25... Rxd1+ {[%clk 0:04:18.5]} 26.
Qxd1 {[%clk 0:03:58.8]} 26... Qa6 {[%clk 0:04:15.4]} 27. Qb1+ {[%clk 0:03:54.3]}
27... g6 {[%clk 0:04:13.8]} 28. h3 {[%clk 0:03:43.7]} 28... h5 {[%clk
0:04:12.2]} 29. Qb3 {[%clk 0:03:39.9]} 29... Qf6 {[%clk 0:04:01.4]} 30. a4
{[%clk 0:03:34.4]} 30... Qa1+ {[%clk 0:03:59]} 31. Kh2 {[%clk 0:03:33.4]} 31...
Qe5+ {[%clk 0:03:58]} 32. f4 {[%clk 0:03:25]} 32... Qxf4+ {[%clk 0:03:56]} 33.
Kg1 {[%clk 0:03:24.6]} 33... Qd4+ {[%clk 0:03:52]} 34. Kf1 {[%clk 0:03:23.3]}
34... Qa1+ {[%clk 0:03:49.6]} 35. Kf2 {[%clk 0:03:20.4]} 35... Qd4+ {[%clk
0:03:48.3]} 36. Kf3 {[%clk 0:03:17.7]} 36... Qf6+ {[%clk 0:03:43.2]} 37. Ke2
{[%clk 0:03:13.7]} 37... Qe5+ {[%clk 0:03:35.7]} 38. Qe3 {[%clk 0:03:09.8]}
38... Qb2+ {[%clk 0:03:34.7]} 39. Kf3 {[%clk 0:03:08.1]} 39... Qb7+ {[%clk
0:03:33.8]} 40. Kg3 {[%clk 0:03:00.5]} 40... Qc7+ {[%clk 0:03:31.8]} 41. Qf4
{[%clk 0:02:59.6]} 41... Qc3+ {[%clk 0:03:30.7]} 42. Kh2 {[%clk 0:02:58.1]}
42... Kg7 {[%clk 0:03:26.6]} 43. Qd6 {[%clk 0:02:51.7]} 43... Qa5 {[%clk
0:03:16.2]} 44. Qd1 {[%clk 0:02:45.1]} 44... Qe5+ {[%clk 0:03:12.7]} 45. Kh1
{[%clk 0:02:44.6]} 45... Qa5 {[%clk 0:03:11.3]} 46. Qa1+ {[%clk 0:02:42.8]}
46... f6 {[%clk 0:03:09.5]} 47. Qd1 {[%clk 0:02:38.4]} 47... Kh6 {[%clk
0:03:08.2]} 48. Qc1+ {[%clk 0:02:29.1]} 48... g5 {[%clk 0:03:06.4]} 49. Qf1
{[%clk 0:02:26.2]} 49... Kg6 {[%clk 0:03:00.1]} 50. Qb5 {[%clk 0:02:23.2]} 50...
Qe1+ {[%clk 0:02:58.4]} 51. Kh2 {[%clk 0:02:22.2]} 51... h4 {[%clk 0:02:57.8]}
52. Qd3+ {[%clk 0:02:16]} 52... Kh6 {[%clk 0:02:56.5]} 53. Qd6 {[%clk
0:02:05.4]} 53... Kg6 {[%clk 0:02:52.9]} 54. Qd3+ {[%clk 0:02:04]} 54... Kh6
{[%clk 0:02:51.8]} 55. Qd6 {[%clk 0:02:01]} 55... Kg6 {[%clk 0:02:50.3]} 56.
Qd3+ {[%clk 0:02:00.6]} 1/2-1/2

[Event "Live Chess"]
[Site "Chess.com"]
[Date "2024.06.02"]
[Round "-"]
[White "yarek"]
[Black "vincents82"]
[Result "0-1"]
[WhiteElo "1754"]
[BlackElo "1992"]
[TimeControl "300"]
[EndTime "6:04:24 PDT"]
[Termination "vincents82 won on time"]

1. e4 {[%clk 0:04:56.7]} 1... d5 {[%clk 0:04:59.1]} 2. Nf3 {[%clk 0:04:54.3]}
2... dxe4 {[%clk 0:04:58]} 3. Ng5 {[%clk 0:04:53.6]} 3... Nf6 {[%clk 0:04:56.3]}
4. Bc4 {[%clk 0:04:51.6]} 4... e6 {[%clk 0:04:55.1]} 5. Nc3 {[%clk 0:04:49.9]}
5... Nbd7 {[%clk 0:04:54.4]} 6. Ngxe4 {[%clk 0:04:45.8]} 6... Nxe4 {[%clk
0:04:53.3]} 7. Nxe4 {[%clk 0:04:44.5]} 7... Be7 {[%clk 0:04:52.5]} 8. d4 {[%clk
0:04:42.7]} 8... O-O {[%clk 0:04:50.6]} 9. O-O {[%clk 0:04:41.5]} 9... b6 {[%clk
0:04:49.5]} 10. Qh5 {[%clk 0:04:35.7]} 10... Nf6 {[%clk 0:04:47.3]} 11. Nxf6+
{[%clk 0:04:33.2]} 11... Bxf6 {[%clk 0:04:46.7]} 12. c3 {[%clk 0:04:26.9]} 12...
Bb7 {[%clk 0:04:43.8]} 13. Bd3 {[%clk 0:04:24.8]} 13... g6 {[%clk 0:04:42.4]}
14. Qg4 {[%clk 0:04:17.1]} 14... c5 {[%clk 0:04:39.4]} 15. Be3 {[%clk
0:04:12.6]} 15... Qd5 {[%clk 0:04:37]} 16. f3 {[%clk 0:04:05.3]} 16... cxd4
{[%clk 0:04:29.3]} 17. cxd4 {[%clk 0:03:49.8]} 17... Rfd8 {[%clk 0:04:23.7]} 18.
Be4 {[%clk 0:03:43.9]} 18... Qd7 {[%clk 0:04:22.5]} 19. Rfd1 {[%clk 0:03:37]}
19... Bg7 {[%clk 0:04:10.9]} 20. h4 {[%clk 0:03:30.9]} 20... h5 {[%clk
0:04:09.1]} 21. Qg3 {[%clk 0:03:20.4]} 21... Bd5 {[%clk 0:03:54]} 22. b3 {[%clk
0:03:11.1]} 22... Rac8 {[%clk 0:03:50.4]} 23. Bd3 {[%clk 0:02:54.9]} 23... Rc3
{[%clk 0:03:45.7]} 24. Qf2 {[%clk 0:02:44.1]} 24... Bb7 {[%clk 0:03:42.5]} 25.
Bc4 {[%clk 0:02:36.2]} 25... Rxe3 {[%clk 0:03:38.5]} 26. Qxe3 {[%clk 0:02:33.9]}
26... Bxd4 {[%clk 0:03:36.8]} 27. Rxd4 {[%clk 0:02:32.6]} 27... Qxd4 {[%clk
0:03:35.7]} 28. Qxd4 {[%clk 0:02:31.1]} 28... Rxd4 {[%clk 0:03:35.4]} 29. Kf2
{[%clk 0:02:09.5]} 29... Rxh4 {[%clk 0:03:32.4]} 30. Rd1 {[%clk 0:02:07.1]}
30... Kg7 {[%clk 0:03:22.1]} 31. Rd7 {[%clk 0:02:05.2]} 31... Bd5 {[%clk
0:03:21.1]} 32. Bxd5 {[%clk 0:02:00.8]} 32... exd5 {[%clk 0:03:20.1]} 33. Rxd5
{[%clk 0:01:59.7]} 33... Rb4 {[%clk 0:03:14.2]} 34. Rd7 {[%clk 0:01:54.8]} 34...
a5 {[%clk 0:03:11.2]} 35. Rd6 {[%clk 0:01:51.3]} 35... g5 {[%clk 0:03:01]} 36.
Ke3 {[%clk 0:01:46]} 36... f6 {[%clk 0:02:50.5]} 37. Rc6 {[%clk 0:01:32.1]}
37... Kg6 {[%clk 0:02:45.3]} 38. Rd6 {[%clk 0:01:30.5]} 38... h4 {[%clk
0:02:41.1]} 39. Rc6 {[%clk 0:01:27.2]} 39... Kf5 {[%clk 0:02:38.7]} 40. Rd6
{[%clk 0:01:17]} 40... Ke5 {[%clk 0:02:37.4]} 41. Rc6 {[%clk 0:01:15.3]} 41...
f5 {[%clk 0:02:35.9]} 42. Rc8 {[%clk 0:01:13.1]} 42... g4 {[%clk 0:02:32.8]} 43.
Re8+ {[%clk 0:01:10.3]} 43... Kf6 {[%clk 0:02:31]} 44. Rf8+ {[%clk 0:01:08.7]}
44... Ke6 {[%clk 0:02:27.7]} 45. Re8+ {[%clk 0:00:56.1]} 45... Kf7 {[%clk
0:02:26.3]} 46. Rh8 {[%clk 0:00:53.8]} 46... gxf3 {[%clk 0:02:23.8]} 47. Kxf3
{[%clk 0:00:52.3]} 47... a4 {[%clk 0:02:21.4]} 48. bxa4 {[%clk 0:00:42.5]} 48...
Rxa4 {[%clk 0:02:18.6]} 49. Rh5 {[%clk 0:00:39.2]} 49... Kg6 {[%clk 0:02:16.1]}
50. Rh8 {[%clk 0:00:37.6]} 50... Ra3+ {[%clk 0:02:06.3]} 51. Kf4 {[%clk
0:00:35]} 51... Rxa2 {[%clk 0:02:03.9]} 52. Rg8+ {[%clk 0:00:31.3]} 52... Kf7
{[%clk 0:02:01.6]} 53. Rb8 {[%clk 0:00:23.7]} 53... Rxg2 {[%clk 0:01:50]} 54.
Kxf5 {[%clk 0:00:21.7]} 54... Rb2 {[%clk 0:01:46.3]} 55. Rb7+ {[%clk 0:00:19.9]}
55... Ke8 {[%clk 0:01:44.8]} 56. Ke6 {[%clk 0:00:16.4]} 56... Kd8 {[%clk
0:01:44.1]} 57. Rh7 {[%clk 0:00:13.5]} 57... Rb4 {[%clk 0:01:42.4]} 58. Kd6
{[%clk 0:00:11.9]} 58... Kc8 {[%clk 0:01:41.8]} 59. Kc6 {[%clk 0:00:10.6]} 59...
Kb8 {[%clk 0:01:38.9]} 60. Rh8+ {[%clk 0:00:07.7]} 60... Ka7 {[%clk 0:01:38]}
61. Rh7+ {[%clk 0:00:07]} 61... Ka6 {[%clk 0:01:37]} 62. Rh8 {[%clk 0:00:05.9]}
62... Rc4+ {[%clk 0:01:34.1]} 63. Kd5 {[%clk 0:00:04.3]} 63... Rc5+ {[%clk
0:01:33.6]} 64. Kd4 {[%clk 0:00:02.4]} 64... Kb5 {[%clk 0:01:32]} 0-1

[Event "Live Chess"]
[Site "Chess.com"]
[Date "2024.06.02"]
[Round "-"]
[White "degringolade64"]
[Black "Tatarinov_Maxim"]
[Result "1/2-1/2"]
[WhiteElo "2121"]
[BlackElo "2281"]
[TimeControl "300"]
[EndTime "6:04:52 PDT"]
[Termination "Game drawn - insufficient material"]

1. e4 {[%clk 0:04:57.1]} 1... c5 {[%clk 0:04:56.8]} 2. Nf3 {[%clk 0:04:56.1]}
2... Nc6 {[%clk 0:04:54.7]} 3. Bb5 {[%clk 0:04:55.5]} 3... Qb6 {[%clk
0:04:51.1]} 4. Bxc6 {[%clk 0:04:53.6]} 4... Qxc6 {[%clk 0:04:49.7]} 5. O-O
{[%clk 0:04:51.4]} 5... d6 {[%clk 0:04:47.9]} 6. Re1 {[%clk 0:04:48.8]} 6... e6
{[%clk 0:04:46.1]} 7. d4 {[%clk 0:04:35]} 7... cxd4 {[%clk 0:04:44.5]} 8. Nxd4
{[%clk 0:04:34.2]} 8... Qd7 {[%clk 0:04:44.4]} 9. Nc3 {[%clk 0:04:24.5]} 9...
Be7 {[%clk 0:04:41.3]} 10. f4 {[%clk 0:04:00.6]} 10... Nf6 {[%clk 0:04:39.5]}
11. f5 {[%clk 0:03:58.2]} 11... O-O {[%clk 0:04:36.7]} 12. fxe6 {[%clk
0:03:56.7]} 12... fxe6 {[%clk 0:04:36]} 13. Bg5 {[%clk 0:03:53.7]} 13... a6
{[%clk 0:04:19]} 14. Kh1 {[%clk 0:03:27.7]} 14... Qe8 {[%clk 0:03:58.7]} 15. e5
{[%clk 0:03:22.3]} 15... dxe5 {[%clk 0:03:48.4]} 16. Rxe5 {[%clk 0:03:20.1]}
16... Qg6 {[%clk 0:03:42.2]} 17. Nxe6 {[%clk 0:02:54.4]} 17... Bxe6 {[%clk
0:03:38.2]} 18. Rxe6 {[%clk 0:02:53.4]} 18... Qxg5 {[%clk 0:03:30.7]} 19. Rxe7
{[%clk 0:02:51.8]} 19... Ng4 {[%clk 0:03:29.8]} 20. Qd5+ {[%clk 0:02:48.4]}
20... Qxd5 {[%clk 0:03:28.1]} 21. Nxd5 {[%clk 0:02:48.3]} 21... Rad8 {[%clk
0:03:21.4]} 22. Nc7 {[%clk 0:02:41.4]} 22... Rd2 {[%clk 0:03:07.9]} 23. Ne6
{[%clk 0:02:37.2]} 23... Re2 {[%clk 0:02:41]} 24. Rxg7+ {[%clk 0:02:34.5]} 24...
Kh8 {[%clk 0:02:40.2]} 25. Rxg4 {[%clk 0:02:27.9]} 25... Rxe6 {[%clk 0:02:39.3]}
26. Rd1 {[%clk 0:02:07.1]} 26... Re2 {[%clk 0:02:35.6]} 27. h4 {[%clk
0:02:04.9]} 27... Rxc2 {[%clk 0:02:32.7]} 28. Rd7 {[%clk 0:02:04.3]} 28... Rxb2
{[%clk 0:02:27.4]} 29. Rgg7 {[%clk 0:02:02.3]} 29... Rff2 {[%clk 0:02:12.7]} 30.
Rxh7+ {[%clk 0:02:00.3]} 30... Kg8 {[%clk 0:02:11.8]} 31. Rdg7+ {[%clk
0:01:59.3]} 31... Kf8 {[%clk 0:02:10.4]} 32. Rxb7 {[%clk 0:01:57.4]} 32... Rxb7
{[%clk 0:02:06.1]} 33. Rxb7 {[%clk 0:01:57.3]} 33... Rxa2 {[%clk 0:02:05.2]} 34.
Ra7 {[%clk 0:01:55.5]} 34... Ra4 {[%clk 0:01:58.1]} 35. g3 {[%clk 0:01:47.5]}
35... Ra2 {[%clk 0:01:57.1]} 36. Kg1 {[%clk 0:01:46.2]} 36... a5 {[%clk
0:01:56.1]} 37. h5 {[%clk 0:01:40.2]} 37... Kg8 {[%clk 0:01:53]} 38. h6 {[%clk
0:01:36.3]} 38... Ra3 {[%clk 0:01:50.6]} 39. Kf2 {[%clk 0:01:34.6]} 39... a4
{[%clk 0:01:46.9]} 40. g4 {[%clk 0:01:29.5]} 40... Rh3 {[%clk 0:01:41.7]} 41. g5
{[%clk 0:01:25.8]} 41... a3 {[%clk 0:01:39.3]} 42. Kg2 {[%clk 0:01:19.6]} 42...
Rh5 {[%clk 0:01:37.2]} 43. Ra8+ {[%clk 0:00:45.9]} 43... Kh7 {[%clk 0:01:34.1]}
44. Rxa3 {[%clk 0:00:43.6]} 44... Rxg5+ {[%clk 0:01:32.4]} 45. Kf3 {[%clk
0:00:40.8]} 45... Kxh6 {[%clk 0:01:31.6]} 46. Ra6+ {[%clk 0:00:40]} 46... Rg6
{[%clk 0:01:30.4]} 47. Rxg6+ {[%clk 0:00:36.5]} 47... Kxg6 {[%clk 0:01:30.3]}
1/2-1/2

[Event "Live Chess"]
[Site "Chess.com"]
[Date "2024.06.02"]
[Round "-"]
[White "CarmelJane"]
[Black "Konovka_Ukraine"]
[Result "0-1"]
[WhiteElo "1991"]
[BlackElo "1750"]
[TimeControl "300"]
[EndTime "6:04:57 PDT"]
[Termination "Konovka_Ukraine won by resignation"]

1. e4 {[%clk 0:04:56.2]} 1... c6 {[%clk 0:04:59.1]} 2. Nc3 {[%clk 0:04:54.4]}
2... d5 {[%clk 0:04:58.2]} 3. Nf3 {[%clk 0:04:54]} 3... dxe4 {[%clk 0:04:56.8]}
4. Nxe4 {[%clk 0:04:53.9]} 4... Nd7 {[%clk 0:04:55.5]} 5. Qe2 {[%clk 0:04:52.7]}
5... e6 {[%clk 0:04:54.2]} 6. d4 {[%clk 0:04:50.3]} 6... Ngf6 {[%clk 0:04:53.3]}
7. Bg5 {[%clk 0:04:47.4]} 7... Be7 {[%clk 0:04:52.1]} 8. Nxf6+ {[%clk
0:04:40.5]} 8... Nxf6 {[%clk 0:04:52]} 9. Bxf6 {[%clk 0:04:38.6]} 9... Bxf6
{[%clk 0:04:51]} 10. c3 {[%clk 0:04:37.5]} 10... b6 {[%clk 0:04:46.5]} 11. g3
{[%clk 0:04:36.1]} 11... Bb7 {[%clk 0:04:45.1]} 12. Bg2 {[%clk 0:04:35.5]} 12...
O-O {[%clk 0:04:43.3]} 13. O-O {[%clk 0:04:35.1]} 13... Rc8 {[%clk 0:04:41.6]}
14. Ne5 {[%clk 0:04:33.8]} 14... Bxe5 {[%clk 0:04:39.6]} 15. Qxe5 {[%clk
0:04:33.7]} 15... c5 {[%clk 0:04:37.9]} 16. Bxb7 {[%clk 0:04:31.5]} 16... Rc7
{[%clk 0:04:34.6]} 17. Bg2 {[%clk 0:04:29.8]} 17... cxd4 {[%clk 0:04:33.1]} 18.
cxd4 {[%clk 0:04:29.7]} 18... Rd7 {[%clk 0:04:30]} 19. Rfd1 {[%clk 0:04:27.6]}
19... Qc8 {[%clk 0:04:22.9]} 20. Rac1 {[%clk 0:04:24.6]} 20... Qa6 {[%clk
0:04:21.8]} 21. a3 {[%clk 0:04:19.9]} 21... g6 {[%clk 0:04:15.6]} 22. Bc6 {[%clk
0:04:17.1]} 22... Rdd8 {[%clk 0:04:04.2]} 23. Bb5 {[%clk 0:04:02.8]} 23... Qb7
{[%clk 0:04:00.7]} 24. Rc7 {[%clk 0:03:59.8]} 24... Qf3 {[%clk 0:03:58.6]} 25.
Rdc1 {[%clk 0:03:56.8]} 25... Rd5 {[%clk 0:03:56.8]} 26. Qe3 {[%clk 0:03:53.7]}
26... Qxe3 {[%clk 0:03:51.9]} 27. fxe3 {[%clk 0:03:53]} 27... Rxb5 {[%clk
0:03:51.2]} 28. Rxa7 {[%clk 0:03:52.7]} 28... Rxb2 {[%clk 0:03:49.6]} 29. Rac7
{[%clk 0:03:44.5]} 29... Rb3 {[%clk 0:03:46.9]} 30. R1c3 {[%clk 0:03:43]} 30...
Rb2 {[%clk 0:03:24.2]} 31. Rc2 {[%clk 0:03:39.1]} 31... Rb3 {[%clk 0:03:20.6]}
32. R7c3 {[%clk 0:03:35]} 32... Rb5 {[%clk 0:03:18.4]} 33. Kf2 {[%clk
0:03:27.3]} 33... Ra8 {[%clk 0:03:16.8]} 34. Rc8+ {[%clk 0:03:26.1]} 34... Rxc8
{[%clk 0:03:15]} 35. Rxc8+ {[%clk 0:03:26]} 35... Kg7 {[%clk 0:03:12.8]} 36. Kf3
{[%clk 0:03:21.5]} 36... Rb3 {[%clk 0:03:11.4]} 37. Rb8 {[%clk 0:03:16.2]} 37...
b5 {[%clk 0:03:08.4]} 38. a4 {[%clk 0:03:15.4]} 38... bxa4 {[%clk 0:03:06.8]}
39. Ra8 {[%clk 0:03:13.3]} 39... a3 {[%clk 0:03:04.6]} 40. Ke4 {[%clk 0:03:12]}
40... h5 {[%clk 0:03:00.8]} 41. h4 {[%clk 0:03:11.4]} 41... f5+ {[%clk
0:02:53.3]} 42. Kf4 {[%clk 0:03:05.7]} 42... Kf7 {[%clk 0:02:48.2]} 43. e4
{[%clk 0:02:53.6]} 43... fxe4 {[%clk 0:02:43.2]} 44. Kxe4 {[%clk 0:02:40.1]}
44... Rxg3 {[%clk 0:02:39.4]} 45. Ke5 {[%clk 0:02:29.2]} 45... Re3+ {[%clk
0:02:27]} 46. Kd6 {[%clk 0:02:27]} 46... Re4 {[%clk 0:02:20.5]} 47. Rxa3 {[%clk
0:02:25.4]} 47... Rxd4+ {[%clk 0:02:18.1]} 48. Ke5 {[%clk 0:02:25.1]} 48... Rd5+
{[%clk 0:02:12.3]} 49. Kf4 {[%clk 0:02:21.2]} 49... Kf6 {[%clk 0:02:11.2]} 50.
Ra8 {[%clk 0:02:18.5]} 50... Rd4+ {[%clk 0:02:08.9]} 51. Kg3 {[%clk 0:02:17.3]}
51... Rg4+ {[%clk 0:02:07.1]} 52. Kh3 {[%clk 0:02:15.5]} 52... e5 {[%clk
0:02:06]} 0-1